Cogmind - Beta 13 X1 @@@ ROGUE MODE // 2023.07.28 @ 18:03:04 Player: maxwell Result: Self-destructed Performance ------------- Evolutions (5) 2500 Regions Visited (11) 2200 Robots Destroyed (124) 620 Value Destroyed (4637) 4637 Prototype IDs (27) 540 Alien Tech Used (0) 0 Bonus (-287) -287 TOTAL SCORE: 10210 Bonus ------- Follower Combat Kills 45 Met Data Miner 300 Friendly Fire -632 Cogmind --------- Core Integrity 935/1000 Matter 4/300 Energy 154/315 System Corruption 30% Temperature Cool (0) Movement Walking (260) Ox2 Location -5/Factory Parts ------- > --- POWER (2) -------- Neutrino Core > --- PROPULSION (5) --- Carbon-fiber Leg Carbon-fiber Leg Carbon-fiber Leg Carbon-fiber Leg > --- UTILITY (8) ------ Huge Storage Unit Advanced Terrain Scan Processor Advanced Targeting Computer Launcher Loader Layered Medium Armor Plating Medium Reactive Plating Improved Force Field > --- WEAPON (2) ------- Advanced Plasma Cannon Proton Missile Launcher > --- INVENTORY (25) --- Neutrino Core Advanced Terrain Scanner Long-range Terrain Scanner Precision Matter Filter Particle Charger Launcher Loader Combat Drone Bay (2/2) Improved EM Pulse Cannon Improved EM Pulse Cannon Heavy Proton Cannon Plasma Cannon Precision Grenade Launcher Long-range Missile Launcher Long-range Missile Launcher Great Maul Peak State ------------ > --- POWER ------------ Light Fission Core Neutrino Core > --- PROPULSION ------- Carbon-fiber Leg Carbon-fiber Leg Carbon-fiber Leg Carbon-fiber Leg > --- UTILITY ---------- Huge Storage Unit Advanced Terrain Scan Processor Advanced Targeting Computer Launcher Loader Layered Medium Armor Plating Medium Reactive Plating Improved Force Field > --- WEAPON ----------- Heavy Proton Cannon Advanced Plasma Cannon > --- INVENTORY -------- Advanced Terrain Scanner Long-range Terrain Scanner Precision Matter Filter Particle Charger Launcher Loader Combat Drone Bay Improved EM Pulse Cannon Improved EM Pulse Cannon Plasma Cannon Proton Missile Launcher Precision Grenade Launcher Long-range Missile Launcher Long-range Missile Launcher Great Maul [Rating: 78] Favorites ----------- Power Improved Deuterium Engine Engine Improved Deuterium Engine Power Core Micro Nuclear Core Propulsion Light Treads Treads Light Treads Leg Aluminum Leg Utility Advanced Targeting Computer Device Power Bank Storage Huge Storage Unit Processor Advanced Targeting Computer Protection Improved Medium Armor Plating Weapon Pulse Rifle Energy Gun Pulse Rifle Energy Cannon Ion Cannon Ballistic Gun Enhanced Autogun Launcher Grenade Launcher Impact Weapon Great Maul Build | -11 -10 -10 -10 -8 -7 -7 -7 -7 -6 -6 -5 ------- Run | Jun Mat Min Sub Mat Fac Low Low Dat Pro Fac Fac Slots Evolved 10 | . . . . 4 2 . . . . 2 2 Power 1 | . . . . . . . . . . 1 . Propulsion 3 | . . . . 2 . . . . . . 1 Utility 6 | . . . . 2 2 . . . . 1 1 Weapon . | . . . . . . . . . . . . Parts Attached 174 | . 5 3 9 34 36 20 8 1 20 24 14 Power 15 | . . 1 1 2 4 1 . . 2 3 1 Engine 10 | . . 1 1 2 3 . . . 2 1 . Core 5 | . . . . . 1 1 . . . 2 1 Reactor . | . . . . . . . . . . . . Propulsion 36 | . . . 2 12 9 4 . . 2 4 3 Treads 32 | . . . 2 12 9 4 . . 2 3 . Leg 4 | . . . . . . . . . . 1 3 Wheel . | . . . . . . . . . . . . Hover . | . . . . . . . . . . . . Flight . | . . . . . . . . . . . . Utility 53 | . 3 . 1 11 9 7 2 . 9 6 5 Device 26 | . . . . 4 6 2 1 . 6 5 2 Storage 2 | . 1 . . . 1 . . . . . . Processor 3 | . . . . 1 1 . . . . 1 . Hackware . | . . . . . . . . . . . . Protection 22 | . 2 . 1 6 1 5 1 . 3 . 3 Artifact . | . . . . . . . . . . . . Weapon 70 | . 2 2 5 9 14 8 6 1 7 11 5 Energy Gun 16 | . . . . 1 1 1 3 . 4 6 . Energy Cannon 15 | . . . . 6 2 1 2 1 . 1 2 Ballistic Gun 14 | . 1 1 4 2 3 3 . . . . . Ballistic Cannon . | . . . . . . . . . . . . Launcher 20 | . 1 1 1 . 4 3 1 . 3 3 3 Special Weapon . | . . . . . . . . . . . . Impact Weapon 5 | . . . . . 4 . . . . 1 . Slashing Weapon . | . . . . . . . . . . . . Piercing Weapon . | . . . . . . . . . . . . Special Melee Weapon . | . . . . . . . . . . . . Unidentified Prototypes 6 | . . . . 1 3 . . . 1 . 1 Corrupted Parts 10 | . . . . . . 2 . . 3 2 3 System Corruption 70 | . . . . . . 21 . . 8 11 30 Parts Lost 49 | . . . 4 3 10 12 . . 3 12 5 Power 8 | . . . 1 . 3 1 . . . 2 1 Propulsion 17 | . . . . 1 4 4 . . 2 5 1 Utility 10 | . . . . 1 1 3 . . 1 3 1 Weapon 14 | . . . 3 1 2 4 . . . 2 2 Highest Loss Streak 12 | . . . 3 2 3 12 . . 2 6 2 To Critical Strikes . | . . . . . . . . . . . . Average Slot Usage (%) 94 | . 99 100 99 97 87 97 98 85 98 93 76 Engine 6 | . 14 14 13 8 9 5 . . . 10 . Core 5 | . . . . . . 8 14 14 13 2 10 Treads 23 | . . . 24 35 26 26 28 28 27 22 1 Leg 3 | . 28 28 3 . . . . . . . 14 Device 12 | . . . . 9 17 18 13 14 13 18 9 Storage 8 | . 14 14 14 9 6 7 7 7 7 6 5 Processor 9 | . . . . 4 10 14 14 14 14 13 11 Protection 7 | . 13 14 14 11 3 2 7 7 7 5 10 Energy Gun 3 | . 6 . . . . . 6 . 11 11 2 Energy Cannon 2 | . . . . 7 5 1 6 . 1 . 4 Ballistic Gun 7 | . 21 28 24 6 2 11 . . . . . Naked Turns . | . . . . . . . . . . . . Heaviest Build 172 | 12 28 32 38 45 110 120 125 118 121 129 172 Greatest Support 104 | 20 20 20 40 86 86 88 88 88 104 104 60 Greatest Overweight (x) 10 | . 1 1 1 . 1 2 1 1 1 4 10 Average Overweight (x) . | . . 1 . . . 1 1 1 1 1 2 Largest Inventory Capacity 25 | . 15 15 15 15 25 25 25 25 25 25 25 Average Capacity 21 | . 11 15 15 15 19 25 25 25 25 25 25 Most Carried 25 | . 12 15 15 15 24 24 25 25 25 25 19 Average Carried 19 | . 9 13 13 13 17 22 22 25 24 23 16 Final Capacity 25 | 8 15 15 15 15 25 25 25 25 25 25 25 Final Carried 25 | 6 12 15 11 15 24 19 25 25 25 19 17 Class Distribution -------------------- 57% | Mutant 42% | Scavenger-Mutant Dominant Class ---------------- Mutant | -10/Materials Mutant | -10/Mines Mutant | -10/Subcaves Mutant | -8/Materials Scavenger-Mutant | -7/Factory Mutant | -7/Lower Caves Scavenger-Mutant | -7/Lower Caves Scavenger-Mutant | -7/Data Miner Mutant | -6/Proximity Caves Scavenger-Mutant | -6/Factory Scavenger-Mutant | -5/Factory Resources | -11 -10 -10 -10 -8 -7 -7 -7 -7 -6 -6 -5 ----------- Run | Jun Mat Min Sub Mat Fac Low Low Dat Pro Fac Fac Matter Collected 3562 | 198 36 120 161 535 489 943 320 . 335 358 67 Remotely 355 | . . . . 355 . . . . . . . Salvage Created 5133 | . 113 . 176 554 1098 787 263 . 903 720 519 Parts 231 | . 6 3 12 41 47 29 7 . 32 29 25 Haulers Intercepted 7 | . 1 . . 1 4 . . . 1 . . Recyclers Shooed 1 | . 1 . . . . . . . . . . Parts Field Recycled . | . . . . . . . . . . . . Retrieved Matter . | . . . . . . . . . . . . Parts Self-Destructed 31 | . . . 3 . . 17 3 . 8 . . Prevented 34 | . . . . . . 6 6 . 22 . . Kills | -11 -10 -10 -10 -8 -7 -7 -7 -7 -6 -6 -5 ------- Run | Jun Mat Min Sub Mat Fac Low Low Dat Pro Fac Fac Combat Hostiles Destroyed 95 | . 2 3 8 7 18 16 4 . 13 15 9 Melee 3 | . . . . . 3 . . . . . . Guns 28 | . . 1 2 4 1 7 . . 2 10 1 Cannons 6 | . . . . 1 4 1 . . . . . AOE 47 | . 2 2 6 2 8 8 3 . 5 4 7 Classes Destroyed 14 | . 2 1 2 5 1 3 . . . . . Builder 10 | . . . . 3 2 . . . . 2 3 Hauler 7 | . 1 . . 1 4 . . . 1 . . Recycler 2 | . . . . 1 1 . . . . . . Minesweeper 1 | . . . . . . 1 . . . . . Watcher 6 | . . . . 5 . . . . . . 1 Swarmer 21 | . . 3 4 2 4 6 . . 2 . . Grunt 43 | . 2 . . . 8 6 3 . 8 9 7 Duelist 3 | . . . . . . 2 . . 1 . . Sentry 10 | . . . . 4 3 1 1 . 1 . . Hunter 7 | . . . . 1 1 1 . . . 2 2 Programmer 7 | . . . . . 2 . . . 1 4 . Enhanced Grunt 1 | . . . . . . . . . . 1 . Subdweller 4 | . . . 4 . . . . . . . . Zionite 2 | . . . 2 . . . . . . . . Samaritan 3 | . . . . . . 3 . . . . . Best Kill Streak 5 | . 3 3 4 3 4 4 3 . 5 5 5 Combat Bots Only 5 | . 2 3 4 2 4 4 3 . 5 4 4 Max Kills in Single Turn 4 | . 1 2 3 1 4 1 2 . 2 1 2 Gunslinging . | . . . . . . . . . . . . Exploded 4 | . 1 2 3 1 4 1 2 . 2 1 2 Melee 1 | . . . . . 1 . . . . . . Uniques/NPCs Destroyed . | . . . . . . . . . . . . Combat | -11 -10 -10 -10 -8 -7 -7 -7 -7 -6 -6 -5 -------- Run | Jun Mat Min Sub Mat Fac Low Low Dat Pro Fac Fac Damage Taken 9019 | . 29 78 768 673 1869 2027 256 . 708 1657 954 Core 1079 | . . 6 82 44 259 372 10 . 55 186 65 Absorbed by Shields 253 | . . . . . . . . . . 98 155 Redirected to Shielding 28 | . . 6 13 . . . 2 . 7 . . Ignored by Resistances 156 | . . . . . . . . . 2 7 147 Core Remaining (%) 66 | 100 . . 64 92 . . . . . 78 . Volleys Fired 352 | . 5 4 47 70 42 65 7 . 30 60 22 Largest 2 | . 2 2 2 2 2 2 2 . 2 2 2 Hottest 138 | . 40 40 53 120 120 88 138 . 126 126 123 Shots Fired 538 | . 7 6 78 88 70 114 10 . 38 103 24 Gun 350 | . 4 4 70 49 13 98 . . 16 89 7 Cannon 98 | . . . . 32 51 4 6 . 1 1 3 Launcher 90 | . 3 2 8 7 6 12 4 . 21 13 14 Special . | . . . . . . . . . . . . Kinetic 236 | . 4 4 70 49 13 96 . . . . . Thermal 201 | . . . . 32 51 2 . . 16 90 10 Explosive 45 | . 3 2 8 7 3 12 . . . 7 3 Electromagnetic 56 | . . . . . 3 4 10 . 22 6 11 Robot Hit Streak 43 | . 3 4 15 10 13 18 19 . 16 43 24 Robot Miss Streak 4 | . . 1 3 4 2 3 1 . 2 2 . Penetration Max . | . . . . . . . . . . . . Secondary Targets 4 | . . . . . . 2 . . . 2 . Max Gunslinging Chain 1 | . . . . . . 1 . . . 1 . Shots Hit Robots 396 | . 3 4 45 58 66 86 7 . 23 81 23 Core Hits 227 | . 6 4 16 26 30 43 4 . 23 49 26 Critical Kills 1 | . . . . . 1 . . . . . . Critical Parts Destroyed 6 | . . . . . 5 1 . . . . . Critical Strikes 13 | . . . . . 6 1 . . . 6 . Burn 6 | . . . . . . . . . . 6 . Meltdown 1 | . . . . . 1 . . . . . . Destroy 1 | . . . . . . 1 . . . . . Smash 5 | . . . . . 5 . . . . . . Melee Attacks 33 | . . . . . 30 . . . . 3 . Impact 33 | . . . . . 30 . . . . 3 . Slashing . | . . . . . . . . . . . . Piercing . | . . . . . . . . . . . . Sneak Attacks 4 | . . . . . 4 . . . . . . Combat Hostiles 1 | . . . . . 1 . . . . . . Follow-up Attacks . | . . . . . . . . . . . . Damage Inflicted 13037 | . 256 250 1117 1128 2597 2039 299 . 1451 2070 1830 Guns 4417 | . 37 33 661 495 226 1337 . . 209 1300 119 Cannons 1478 | . . . . 392 840 74 103 . . . 69 Explosions 6181 | . 219 217 456 223 619 628 196 . 1242 739 1642 Melee 912 | . . . . . 912 . . . . . . Ramming 49 | . . . . 18 . . . . . 31 . Kinetic 2753 | . 37 33 661 495 226 1301 . . . . . Thermal 3236 | . . . . 392 975 36 . . 305 1340 188 Explosive 3491 | . 219 217 456 223 290 628 . . . 560 898 Electromagnetic 2596 | . . . . . 194 74 299 . 1146 139 744 Impact 912 | . . . . . 912 . . . . . . Slashing . | . . . . . . . . . . . . Piercing . | . . . . . . . . . . . . Highest Corruption 37 | . . . . . 11 28 29 29 37 14 30 Average Corruption 17 | . . . . . 6 11 28 29 29 3 29 Corruption Purged 5 | . . . . . 5 . . . . . . Corruption Blocked . | . . . . . . . . . . . . Effects 345 | . . . . . 18 106 97 9 72 23 20 Message Errors 88 | . . . . . 6 32 25 . 14 5 6 Matter Fused 85 | . . . . . 4 25 23 . 17 9 7 Heat Flow Errors 38 | . . . . . 1 11 8 2 10 3 3 Energy Discharges 45 | . . . . . 2 14 15 3 8 2 1 Parts Fused 6 | . . . . . 1 1 3 . 1 . . Data Loss (minor) 43 | . . . . . 3 13 11 2 10 2 2 Data Loss (major) 20 | . . . . . . 5 9 2 4 . . Misfires 8 | . . . . . 1 2 1 . 3 1 . Alerts 5 | . . . . . . 2 . . 3 . . Misdirections 1 | . . . . . . . 1 . . . . Weapon Failures 6 | . . . . . . 1 1 . 2 1 1 Overload Shots . | . . . . . . . . . . . . Overflow Damage 558 | . . 30 8 17 434 25 . . 20 6 18 Projectiles 17 | . . . . 17 . . . . . . . Explosions 107 | . . 30 8 . . 25 . . 20 6 18 Melee 434 | . . . . . 434 . . . . . . Knockbacks 4 | . . . . . 3 . . . . 1 . Impact 4 | . . . . . 3 . . . . 1 . Kinetic . | . . . . . . . . . . . . Secondary . | . . . . . . . . . . . . Self-Inflicted Damage 685 | . . 30 31 . 18 163 . . 39 . 404 Shots 20 | . . 1 2 . 2 3 . . 2 . 10 Rammed 6 | . . . . 1 . . . . . 5 . Targets Rammed 8 | . . . . 2 . . . . . 6 . Kicked . | . . . . . . . . . . . . Crushed 2 | . . . . 1 . . . . . 1 . Highest Temperature 275 | . 4 . 264 180 254 268 275 216 260 216 175 Average Temperature 77 | . 4 . 147 46 110 62 86 92 88 44 62 Received Heat Transfer 2562 | . 18 . 502 117 345 558 87 . 267 471 197 Effects 1 | . . . . . 1 . . . . . . Energy Bleed 1 | . . . . . 1 . . . . . . Siege Activations . | . . . . . . . . . . . . Robots Corrupted 9 | . . . . . . . 1 . 6 1 1 Combat Hostiles 9 | . . . . . . . 1 . 6 1 1 Parts Fried 21 | . . . . . 7 . 1 . 4 1 8 Impact Corruptions 10 | . . . . . 10 . . . . . . Robots Melted 1 | . . . . . 1 . . . . . . Combat Hostiles . | . . . . . . . . . . . . Parts Melted 15 | . . . . 2 4 . . . . 8 1 Heat Transferred 6194 | . . . . 629 1482 74 . . 494 3145 370 Parts Sabotaged . | . . . . . . . . . . . . Parts Stolen . | . . . . . . . . . . . . Parts Stripped . | . . . . . . . . . . . . Power Chain Reactions 8 | . . . . . 3 . . . 2 2 1 Missiles Intercepted . | . . . . . . . . . . . . Alert | -11 -10 -10 -10 -8 -7 -7 -7 -7 -6 -6 -5 ------- Run | Jun Mat Min Sub Mat Fac Low Low Dat Pro Fac Fac Peak Influence 381 | . 89 79 . 381 254 . . . . 247 366 Initial 93 | . . 34 . 88 93 . . . . 8 79 Average 123 | . 43 28 . 226 158 . . . . 63 174 Maximum Alert Level 1 | . . . . 1 1 . . . . 1 1 Low Security (%) 76 | . 100 100 . 31 77 . . . . 84 75 Level 1 23 | . . . . 68 22 . . . . 15 24 Level 2 . | . . . . . . . . . . . . Level 3 . | . . . . . . . . . . . . Level 4 . | . . . . . . . . . . . . Level 5 . | . . . . . . . . . . . . High Security . | . . . . . . . . . . . . Max Security . | . . . . . . . . . . . . Squads Dispatched 18 | . 1 . . . 5 . . . . 6 6 Investigation 2 | . . . . . . . . . . 1 1 Extermination 5 | . . . . . 2 . . . . 3 . Reinforcement 10 | . 1 . . . 3 . . . . 2 4 Assault . | . . . . . . . . . . . . Garrison 1 | . . . . . . . . . . . 1 Intercept . | . . . . . . . . . . . . Searches Triggered . | . . . . . . . . . . . . Data Miner Redirects 1 | . . . . . . . . . . 1 . Construction Impeded 4 | . . . . . 1 . . . . 1 2 Haulers Reinforced 1 | . . . . . 1 . . . . . . Active Scanning Responses . | . . . . . . . . . . . . Cargo Convoy Interrupts . | . . . . . . . . . . . . Stealth | -11 -10 -10 -10 -8 -7 -7 -7 -7 -6 -6 -5 --------- Run | Jun Mat Min Sub Mat Fac Low Low Dat Pro Fac Fac Distress Signals 4 | . . . . 2 1 . . . . . 1 Communications Jammed . | . . . . . . . . . . . . Distress Signals . | . . . . . . . . . . . . Times Spotted 135 | . 3 3 12 23 23 15 5 . 15 22 14 Peak Tracking Total 7 | . 2 3 4 6 4 7 3 . 5 6 5 Tactical Retreats 6 | . . . 1 1 1 . . . 2 1 . Traps | -11 -10 -10 -10 -8 -7 -7 -7 -7 -6 -6 -5 ------- Run | Jun Mat Min Sub Mat Fac Low Low Dat Pro Fac Fac Traps Triggered 11 | . . . 1 5 4 . . . . . 1 Indirectly . | . . . . . . . . . . . . Trap Hack Attempts . | . . . . . . . . . . . . Triggered . | . . . . . . . . . . . . Disarmed . | . . . . . . . . . . . . Reprogrammed . | . . . . . . . . . . . . Reused . | . . . . . . . . . . . . Traps Extracted . | . . . . . . . . . . . . Installed 4 | . . 4 . . . . . . . . . Triggered 2 | . . . 1 . . 1 . . . . . Machines | -11 -10 -10 -10 -8 -7 -7 -7 -7 -6 -6 -5 ---------- Run | Jun Mat Min Sub Mat Fac Low Low Dat Pro Fac Fac Machines Disabled 18 | . . . 2 . 8 . . . . 1 7 Max in Single Turn 4 | . . . 1 . 4 . . . . 1 2 Machines Repaired . | . . . . . . . . . . . . Machines Sabotaged . | . . . . . . . . . . . . Overloaded Fab Kills . | . . . . . . . . . . . . Hacking | -11 -10 -10 -10 -8 -7 -7 -7 -7 -6 -6 -5 --------- Run | Jun Mat Min Sub Mat Fac Low Low Dat Pro Fac Fac Machines Accessed 16 | . . . 1 3 1 2 . 3 . 4 2 Terminals 5 | . . . . 3 . . . . . 1 1 Fabricators 5 | . . . . . 1 . . . . 3 1 Repair Stations . | . . . . . . . . . . . . Recycling Units . | . . . . . . . . . . . . Scanalyzers . | . . . . . . . . . . . . Garrison Access . | . . . . . . . . . . . . Total Hacks 51 | . . . 1 11 2 2 . 20 . 10 5 Successful 37 | . . . 1 5 . 2 . 20 . 5 4 Failed 14 | . . . . 6 2 . . . . 5 1 Catastrophic 2 | . . . . . . . . . . 2 . Database Lockouts . | . . . . . . . . . . . . Manual 18 | . . . . 10 . . . . . 6 2 Terminals 14 | . . . . 11 . . . . . 1 2 Fabricators 14 | . . . . . 2 . . . . 9 3 Repair Stations . | . . . . . . . . . . . . Recycling Units . | . . . . . . . . . . . . Scanalyzers . | . . . . . . . . . . . . Garrison Access . | . . . . . . . . . . . . Terminal Hacks 25 | . . . 1 2 . 2 . 20 . . . Record 4 | . . . . . . . . 4 . . . Part Schematic 9 | . . . . . . . . 9 . . . Robot Schematic 4 | . . . . . . . . 4 . . . Robot Analysis 1 | . . . . 1 . . . . . . . Prototype ID Bank 4 | . . . . 1 . . . 3 . . . Open Door 2 | . . . . . . 2 . . . . . Derelict Proto ID Bank 1 | . . . 1 . . . . . . . . Fabricator Hacks 6 | . . . . . . . . . . 3 3 Network Status 2 | . . . . . . . . . . 1 1 Load Schematic 2 | . . . . . . . . . . 1 1 Build 2 | . . . . . . . . . . 1 1 Repair Station Hacks . | . . . . . . . . . . . . Recycling Unit Hacks . | . . . . . . . . . . . . Scanalyzer . | . . . . . . . . . . . . Garrison Access Hacks . | . . . . . . . . . . . . Unauthorized Hacks 6 | . . . . 3 . . . . . 2 1 Terminals 4 | . . . . 3 . . . . . . 1 Botnet 3 | . . . . 2 . . . . . . 1 Operators 1 | . . . . 1 . . . . . . . Fabricators 2 | . . . . . . . . . . 2 . Liberate 2 | . . . . . . . . . . 2 . Repair Stations . | . . . . . . . . . . . . Recycling Units . | . . . . . . . . . . . . Scanalyzers . | . . . . . . . . . . . . Garrison Access . | . . . . . . . . . . . . Data Cores Recovered . | . . . . . . . . . . . . Used . | . . . . . . . . . . . . Hacking Detections 9 | . . . . 3 1 . . . . 3 2 Full Trace Events 2 | . . . . . . . . . . 1 1 Feedback Events . | . . . . . . . . . . . . Feedback Blocked . | . . . . . . . . . . . . Robot Schematics Acquired 4 | . . . . . . . . 4 . . . Robots Built . | . . . . . . . . . . . . Authchips . | . . . . . . . . . . . . Time . | . . . . . . . . . . . . Total Robot Build Rating . | . . . . . . . . . . . . Part Schematics Acquired 9 | . . . . . . . . 9 . . . Parts Built 1 | . . . . . . . . . . 1 . Authchips . | . . . . . . . . . . . . Time 321 | . . . . . . . . . . 169 152 Total Part Build Rating 6 | . . . . . . . . . . 6 . Parts Repaired . | . . . . . . . . . . . . Time . | . . . . . . . . . . . . Parts Recycled . | . . . . . . . . . . . . Recycled Matter . | . . . . . . . . . . . . Retrieved Matter . | . . . . . . . . . . . . Retrieved Components . | . . . . . . . . . . . . Parts Scanalyzed . | . . . . . . . . . . . . Part Schematics Acquired . | . . . . . . . . . . . . Parts Damaged . | . . . . . . . . . . . . Bothacking | -11 -10 -10 -10 -8 -7 -7 -7 -7 -6 -6 -5 ------------ Run | Jun Mat Min Sub Mat Fac Low Low Dat Pro Fac Fac Used RIF Installer . | . . . . . . . . . . . . Robots Hacked . | . . . . . . . . . . . . Non-combat . | . . . . . . . . . . . . Combat . | . . . . . . . . . . . . Robot Hacks Applied . | . . . . . . . . . . . . Relay Couplers Released . | . . . . . . . . . . . . Fabnet Peak Effective % . | . . . . . . . . . . . . Robots Rewired 1 | . . . . . . 1 . . . . . Allies Hacked . | . . . . . . . . . . . . Hacks Repelled . | . . . . . . . . . . . . Allies | -11 -10 -10 -10 -8 -7 -7 -7 -7 -6 -6 -5 -------- Run | Jun Mat Min Sub Mat Fac Low Low Dat Pro Fac Fac Total Allies 4 | . . . . . . 1 . . 1 . 2 Largest Group 2 | . . . . . . 1 1 1 1 1 2 Highest-Rated Group 96 | . . . . . . 16 16 16 96 89 62 Highest-Rated Ally 96 | . . . . . . 16 16 16 96 89 31 Total Orders 2 | . . . . . . . 2 . . . . STAY 1 | . . . . . . . 1 . . . . FOLLOW 1 | . . . . . . . 1 . . . . Ally Attacks 22 | . . . . . . . 5 . 8 . 9 Total Damage 326 | . . . . . . . 84 . 202 . 40 Kills 1 | . . . . . . . 1 . . . . Allies Corrupted . | . . . . . . . . . . . . Allies Melted . | . . . . . . . . . . . . Intel | -11 -10 -10 -10 -8 -7 -7 -7 -7 -6 -6 -5 ------- Run | Jun Mat Min Sub Mat Fac Low Low Dat Pro Fac Fac Robot Analysis Total 1 | . . . . 1 . . . . . . . Derelict Logs Recovered 9 | . . 2 2 . . 1 3 . 1 . . Drone Launches . | . . . . . . . . . . . . Drone Recoveries . | . . . . . . . . . . . . Exploration | -11 -10 -10 -10 -8 -7 -7 -7 -7 -6 -6 -5 ------------- Run | Jun Mat Min Sub Mat Fac Low Low Dat Pro Fac Fac Turns Passed 14895 | . 193 1171 1406 1094 2125 3109 1767 209 1471 1634 716 Spaces Moved 5911 | 1 108 460 755 512 929 1193 713 86 482 495 177 Core . | . . . . . . . . . . . . Treads 5127 | . . . 672 512 929 1193 713 86 482 495 45 Legs 784 | 1 108 460 83 . . . . . . . 132 Wheels . | . . . . . . . . . . . . Hover . | . . . . . . . . . . . . Flight . | . . . . . . . . . . . . Fastest Speed 120 | 120 120 190 160 160 160 240 242 242 242 242 260 Average Speed 215 | 120 148 190 163 160 188 242 242 242 242 264 349 Slowest Speed 820 | 120 190 190 190 160 240 320 242 242 243 480 820 Overloaded Moves . | . . . . . . . . . . . . Propulsion Burnouts . | . . . . . . . . . . . . Robots Hopped . | . . . . . . . . . . . . Cave-ins Triggered 1 | . . . . . 1 . . . . . . Exploration Rate (%) 46 | 2 26 98 44 36 28 97 75 68 61 15 7 Regions Visited 11 Branch Regions 6 Pre-discovered Areas 4 | . . . 2 . . . 1 1 . . . Known Exits Taken 5 | . . . . . 1 1 1 1 1 . . Unknown Exits Taken 6 | 1 1 1 1 1 . . . . . 1 . Scrap Searched 13 | . . 1 2 . . 5 4 . 1 . . Spaces Dug 37 | . . 6 . 5 11 12 . . . 3 . Terrain Destroyed 331 | . 16 11 25 35 27 119 . . 17 38 43 Melee 14 | . . . . . 11 . . . . 3 . Projectile 2 | . . . . 2 . . . . . . . AOE 315 | . 16 11 25 33 16 119 . . 17 35 43 Terrain Rammed . | . . . . . . . . . . . . Walls Destroyed . | . . . . . . . . . . . . Machines Disabled . | . . . . . . . . . . . . Actions | -11 -10 -10 -10 -8 -7 -7 -7 -7 -6 -6 -5 --------- Run | Jun Mat Min Sub Mat Fac Low Low Dat Pro Fac Fac Total 7469 | . 135 751 850 702 1177 1327 743 88 741 706 249 Wait 798 | . 2 275 32 39 108 9 3 . 199 98 33 Move 5900 | . 107 459 754 511 928 1192 712 85 481 494 177 Hop . | . . . . . . . . . . . . Pick Up 93 | . 10 4 3 21 22 6 10 . 7 9 1 Fast Attach 51 | . 2 1 2 20 11 2 . 1 2 5 5 Attach 59 | . . . 5 9 11 10 1 . 6 12 5 Detach 9 | . . . . 1 . . . 1 2 4 1 Swap 64 | . 3 2 2 5 14 8 7 . 12 7 4 Drop 62 | . 6 2 5 24 9 1 3 1 2 8 1 Fire 352 | . 5 4 47 70 42 65 7 . 30 60 22 Melee 33 | . . . . . 30 . . . . 3 . Ram . | . . . . . . . . . . . . Kick . | . . . . . . . . . . . . Crush 8 | . . . . 2 . . . . . 6 . Escape Stasis 2 | . . . . . 2 . . . . . . Rewire 34 | . . . . . . 34 . . . . . Trap 4 | . . 4 . . . . . . . . . Miscellaneous . | . . . . . . . . . . . . Route ------- -11/Junkyard -10/Materials -10/Mines (discovered 3 exits: [*Mat x2] / *Sub) -10/Subcaves (discovered 3 exits: *Mat x2 / [*Rec]) -8/Materials -7/Factory (discovered 2 exits: *Fac / *Low) -7/Lower Caves -7/Lower Caves (discovered 2 exits: *Fac / *Dat) -7/Data Miner -6/Proximity Caves -6/Factory -5/Factory (discovered 2 exits: Upp / Ext) History --------- Turn | Location | Event 1 | -11/Junkyard | Discovered new exit (range 0) 1 | -11/Junkyard | Entered Materials 169 | -10/Materials | Discovered new exit (range 13) 194 | -10/Materials | Entered Mines 195 | -10/Mines | Assembled infested the area 314 | -10/Mines | Build established: Mutant 561 | -10/Mines | Learned Materials stockpile data 580 | -10/Mines | Joined a pair of Derelicts in attacking an 0b10 outpost 670 | -10/Mines | Found a hidden stash of uninstalled traps 750 | -10/Mines | Learned Materials security intel 811 | -10/Mines | Discovered new exit (range 10) 1148 | -10/Mines | Discovered new exit (range 9) 1350 | -10/Mines | Discovered new exit (range 6) 1365 | -10/Mines | Entered Subcaves 1434 | -10/Subcaves | Discovered new exit (range 14) 1554 | -10/Subcaves | Visited 4L-MR0's lab 1575 | -10/Subcaves | Found Power Bank 1713 | -10/Subcaves | Discovered new exit (range 5) 1729 | -10/Subcaves | Learned Materials stockpile data 1730 | -10/Subcaves | Learned location of Zion (-6) 1730 | -10/Subcaves | Met a Zionite searching for "candidates" 1809 | -10/Subcaves | Shifting Twisted Machinery released Mak. Armor Plating 1818 | -10/Subcaves | Shifting Twisted Machinery released Scrap Shield 2249 | -10/Subcaves | Ambushed by Subdwellers from Twisted Machinery 2456 | -10/Subcaves | Lost 3 parts (1p2w) 2560 | -10/Subcaves | Discovered new exit (range 14) 2771 | -10/Subcaves | Entered Materials 2771 | -8/Materials | Evolved 4 slots: Propulsion x2, Utility x2 3794 | -8/Materials | Discovered new exit (range 9) 3865 | -8/Materials | Entered Factory 3865 | -7/Factory | Evolved 2 slots: Utility x2 3977 | -7/Factory | Attached Power Bank, gained temporary slots: Power x3 4477 | -7/Factory | Build established: Scavenger-Mutant 4683 | -7/Factory | Discovered new exit (range 15) 4732 | -7/Factory | Identified exit to Factory 4790 | -7/Factory | Lost 3 parts (2p1w) 5240 | -7/Factory | Discovered new exit (range 6) 5249 | -7/Factory | Identified exit to Lower Caves 5422 | -7/Factory | Crushed by falling debris 5422 | -7/Factory | System corruption reached 10% 5453 | -7/Factory | Lost 3 parts (1n1u1w) 5914 | -7/Factory | Build established: Mutant 5990 | -7/Factory | Entered Lower Caves 6823 | -7/Lower Caves | Encountered a Warlord checkpoint 6870 | -7/Lower Caves | Discovered new exit (range 9) 7812 | -7/Lower Caves | A Derelict revealed a hidden shortcut to a safe place 8148 | -7/Lower Caves | Identified exit to Lower Caves 8433 | -7/Lower Caves | Attracted the attention of an 0b10 outpost 8450 | -7/Lower Caves | Core integrity fell below 50% 8481 | -7/Lower Caves | Core integrity fell below 20% 8524 | -7/Lower Caves | Lost 12 parts (1p4n3u4w) 8762 | -7/Lower Caves | Build established: Scavenger-Mutant 8903 | -7/Lower Caves | Learned Factory trap positions 9099 | -7/Lower Caves | Entered another Lower Caves area 9099 | -7/Lower Caves | Accompanied by 1 ally 9167 | -7/Lower Caves | Discovered exit to Factory (range 10) 10194 | -7/Lower Caves | Identified exit to Data Miner 10227 | -7/Lower Caves | Attracted the attention of an 0b10 checkpoint 10866 | -7/Lower Caves | Entered Data Miner 10866 | -7/Data Miner | Accompanied by 1 ally 10867 | -7/Data Miner | Discovered new exit (range 6) 10913 | -7/Data Miner | Met Data Miner 10969 | -7/Data Miner | Learned location of Section 7 (-3) 10969 | -7/Data Miner | Acquired the access code to Warlord's prototype stash 10993 | -7/Data Miner | Received God Mode back door access code from Data Miner 11072 | -7/Data Miner | Identified exit to Proximity Caves 11075 | -7/Data Miner | Entered Proximity Caves 11075 | -6/Proximity Caves | Accompanied by 1 ally 11305 | -6/Proximity Caves | Escorted by Enhanced Grunt 11369 | -6/Proximity Caves | Build established: Mutant 11799 | -6/Proximity Caves | Attracted the attention of an 0b10 checkpoint 12300 | -6/Proximity Caves | Discovered exit to Factory (range 9) 12529 | -6/Proximity Caves | System corruption reached 30% 12546 | -6/Proximity Caves | Entered Factory 12546 | -6/Factory | Accompanied by 1 ally 12546 | -6/Factory | Evolved 2 slots: Power x1, Utility x1 12547 | -6/Factory | Loaded intel: 125 trap records 12570 | -6/Factory | Found Launcher Loader 12823 | -6/Factory | Build established: Scavenger-Mutant 13104 | -6/Factory | Incoming investigation squad redirected 13254 | -6/Factory | Fabricated Combat Drone Bay (x1) 13831 | -6/Factory | Lost 6 parts (1p3n1u1w) 13865 | -6/Factory | Discovered new exit (range 23) 13990 | -6/Factory | Lost 3 parts (1n1u1w) 14000 | -6/Factory | System corruption reached 10% 14180 | -6/Factory | Entered another Factory area 14180 | -5/Factory | Evolved 2 slots: Propulsion x1, Utility x1 14181 | -5/Factory | Identified exit to Upper Caves 14181 | -5/Factory | Identified exit to Extension 14522 | -5/Factory | System corruption reached 10% 14536 | -5/Factory | System corruption reached 30% 14713 | -5/Factory | Found Launcher Loader 14725 | -5/Factory | Allied Derelicts emerged from ambush trap array 14866 | -5/Factory | Garrison activated, responded to threat 14896 | -5/Factory | Self-destructed Last Messages --------------- 14874_ Unknown Device fried. 14874_ Unknown Processor fried. 14874_ Lgt. Fission Core fried. 14874_ Unknown Processor fried. 14874_ Unknown Leg fried. 14874_ Unknown Processor fried. 14874_ H-66 Slayer destroyed. 14874_ Door malfunctions. 14881_ System corrupted: Matter fused (-10). 14884_ U-05 Engineer lays Concrete. 14884_ Penetrated by Slug. 14884_ ALERT: Hostiles spotted, dispatching reinforcements to Terminal F002. 14885_ U-05 Engineer lays Concrete. 14887_ U-05 Engineer builds a Wall. 14887_ Penetrated by Slug. 14888_ W-25 Informer destroyed. 14890_ U-05 Engineer builds a Wall. 14891_ Penetrated by Slug. 14894_ Slug penetrates Wall. Map ----- +----------------------------------------------------+ | ?????????????????????????????????????????????????? | | ?????????????????????????????????????????????????? | | ?????????????????????????????????????????????????? | | ?????????????????????????????????????????????????? | | ?????????????????????????????????????????????????? | | ?????????????????????????????????????????????????? | | ?????????????????????????????????????????????????? | | ?????????????????????????????????????????????????? | | ?????????????????????????????????????????????????? | | ?????????????????????????????????????????????????? | | ?????????????????????????????????????????????????? | | ???????????????????????????? ??????????????????? | | ????????????????????????????h !% ???????????????? | | ???????????????????????????? = ?????????????? | | ????????????????????????#### ??????????????? | | ???????????????????????? ??????????????? | | ???????????????????????? = ""T"???????????? | | ?????????????????????????%! """?????????????? | | ?????????????????????????!% [ ??????????? #? | | ??????????????#######?#### [%[ ??????????? ?## | | ??????????????? #; # =%l ##???????????? ## | | ???????????????? # b[ #?????????#??#### | | ?????????????????""" ; #### t#??##?? | | ?????????????????""" ;; / ???#???? | | ??????????????"" """ #; #???????????? | | ???????????# !;; @ * #????????#### "" | | ??????????????"" """ #; #???????? + "" | | ??????????????????????#; ! #?????#### ## "? | | ??????????????????????#; ! [ #????? ?# ?# | | ??????????????????????#####;;;####????? #? ##? "" | | ??????????????????????# # #??????? ?## #? "? | | ??????????????????????# # #??????? ??## ## "" | | ??????????????????????# # #######+##### #? | | ??????????????????????# # ##? | | ??????????????????????# """ # ##+### | | ??????????????????????# """ + # | | ??????????????????????# """ # # | | ??????????????????????# # """ # | | ???????????############ " " # """ """ "" # | | ???????????+ + "R" # """ """ # | | ???????????### ######## """ # """ """ [% | | ?????????????# #??????# # ! ! | | ?????????????#!#??????####### % | | ?????????????# #????????????# | | ???????????### ###??????????# | | ???????????# #??????????# #############/###### | | ???????????# ############ #??????#?#??# | | ???????????# #???????????# """ "" | | ???????????# ##############???????#??## """ "" | | ???????????# #????????????????????#?#?# """ "" | +----------------------------------------------------+ Best States ------------- Heat Dissipation 70 Energy Generation 34 Energy Capacity 645 Matter Stores 300 Matter Capacity 300 Sight Range 16 Robot Scan Range 19 Terrain Scan Range 24 Terrain Scan Density 210 Armor Coverage 675 Resistance: KI 30 Resistance: TH 15 Core Shielding 20 Power Shielding 33 Propulsion Shielding 33 Evasion (%) 55 Targeting Accuracy 8 Recoil Reduction 4 Matter Filtering 50 Item Schematics ----------------- Combat Drone Bay | -7/Data Miner | Free Lgt. Regenerative Plating | -7/Data Miner | Free Cld. Cesium-ion Thruster | -7/Data Miner | Free Arm. Medium Treads | -7/Data Miner | Free Antimatter Cannon | -7/Data Miner | Free Gravity Neutralizer | -7/Data Miner | Free Adv. Plasma Cannon | -7/Data Miner | Free Mni. Drone Bay | -7/Data Miner | Free Hvy. Phase Cannon | -7/Data Miner | Free Robot Schematics ------------------ G-50 Soldier | -7/Data Miner | Free W-25 Informer | -7/Data Miner | Free Y-54 Guardian | -7/Data Miner | Free L-41 Fighter | -7/Data Miner | Free Fabricated ------------ Combat Drone Bay | x1 | -6/Factory Alien Tech Used ----------------- None Achievements -------------- None Challenges ------------ None Game ------ Seed CobblerSapperFragment Manual? 0 Play Time 00:49:23 Cumulative 375.8 hours Start 2023.07.27 @ 01:57:56 End 2023.07.28 @ 18:03:04 Sessions 3 Manual Loads 0 Difficulty Rogue Special Mode None Game No. 558 Rogue 530 Adventurer 4 Explorer 24 Win Type - Total 21 Types 15/0/2/2/1/0/0/1/0 Lore% 82 Gallery% 92 Achievement% 83 Wizard Run 0 Options --------- ASCII 0 Keyboard 1 Movement Numpad Keybinds 0 Fullscreen 1 Font 18/SmallcapsGlow Map View 76x50 Tactical HUD 1 Map Filters NONE Filters NONE Steam 1 RUN: b047587b-9ce4-4fd9-9ca6-e7dd22dcf3f3